bitfinex/quotes_BTCUSD_20260101
["timestamp","ask_amount","ask_price","bid_price","bid_amount"]
[1767266068933,0.04804051,87976.0,87969.0,0.01136764]
[1767266069121,0.04804051,87976.0,87967.0,0.01136789]
[1767266069624,0.04804051,87976.0,87968.0,0.01136777]
[1767266070397,0.13638146,87977.0,87968.0,0.01136777]
[1767266070941,0.03072269,87993.0,87969.0,0.02276764]
[1767266071149,0.03072269,87993.0,87983.0,1.15369721]
[1767266071150,0.00035259,87993.0,87983.0,1.15369721]
[1767266071352,0.04723851,87993.0,87980.0,0.01136621]
[1767266071506,0.04723851,87993.0,87980.0,0.51270562]
[1767266071507,0.04688592,87989.0,87980.0,0.51270562]
[1767266071707,0.05828592,87988.0,87977.0,0.00593486]
[1767266071935,0.05828592,87988.0,87979.0,0.51270562]
[1767266072308,0.05828592,87988.0,87977.0,0.00593486]
[1767266072509,0.05828592,87988.0,87978.0,0.51270562]
[1767266074961,0.05828592,87988.0,87977.0,0.00593486]
[1767266077366,0.05828592,87988.0,87976.0,0.0001474]
[1767266080559,0.05828592,87988.0,87965.0,0.01136815]
[1767266080759,0.04708592,87986.0,87970.0,0.51270562]
[1767266080984,0.04708592,87986.0,87966.0,0.01156802]
[1767266080985,0.04688592,87979.0,87966.0,0.0002]
[1767266081200,0.04688592,87977.0,87966.0,0.0002]
[1767266081379,0.04688592,87977.0,87969.0,0.51270562]
[1767266081601,0.04688592,87977.0,87967.0,0.51270562]
[1767266082549,0.04688592,87977.0,87966.0,0.0002]
[1767266082761,0.04688592,87977.0,87967.0,0.51270562]
[1767266083104,0.04688592,87977.0,87966.0,0.0002]
[1767266083456,0.04688592,87977.0,87967.0,0.51270562]
[1767266083656,0.04688592,87977.0,87966.0,0.0002]
[1767266087745,0.04688592,87977.0,87960.0,0.51270562]
[1767266092726,0.04688592,87977.0,87957.0,0.00050912]
[1767266092933,0.04688592,87977.0,87960.0,0.51270562]
[1767266095476,0.04635369,87975.0,87960.0,0.51270562]
[1767266104853,0.0114,87974.0,87967.0,0.01136789]
[1767266105015,0.05637,87974.0,87967.0,0.01136789]
[1767266105227,0.05637,87974.0,87966.0,0.01136802]
[1767266106148,0.05637,87974.0,87965.0,0.52407377]
[1767266106359,0.05637,87974.0,87966.0,0.01136802]
[1767266106522,0.04635369,87977.0,87965.0,0.52407377]
[1767266106754,0.0114,87973.0,87967.0,0.51270562]
[1767266106955,0.0114,87972.0,87964.0,0.01136828]
[1767266107490,0.0114,87972.0,87963.0,0.52407403]
[1767266107698,0.0114,87972.0,87963.0,0.51270562]
[1767266108676,0.04635369,87971.0,87960.0,0.51270562]
[1767266112592,0.000549,87960.0,87953.0,0.01189282]
[1767266112892,0.0114,87959.0,87953.0,0.00052312]
[1767266113039,0.0114,87959.0,87953.0,0.01189282]
[1767266113239,0.05259339,87986.0,87954.0,0.0008964]
[1767266113461,0.05259339,87986.0,87953.0,0.01189282]
[1767266113462,0.03525312,87985.0,87977.0,0.0008964]
[1767266113681,0.12730021,87981.0,87978.0,0.01136647]
[1767266113898,0.12730021,87981.0,87977.0,0.0113666]
[1767266114352,0.12730021,87981.0,87975.0,0.01136686]
[1767266114557,0.12730021,87981.0,87975.0,0.01143501]
[1767266114759,0.12730021,87981.0,87976.0,0.01136673]
[1767266115483,0.12730021,87981.0,87975.0,0.01143501]
[1767266115839,0.12730021,87981.0,87976.0,0.01136673]
[1767266116375,0.12730021,87981.0,87975.0,0.01143501]
[1767266116639,0.12730021,87981.0,87976.0,0.01136673]
[1767266116872,0.12730021,87981.0,87977.0,0.0113666]
[1767266117115,0.0114,87984.0,87976.0,0.01136673]
[1767266119017,0.0114,87984.0,87975.0,0.01143501]
[1767266119243,0.0114,87984.0,87976.0,0.01136673]
[1767266119698,0.0114,87984.0,87975.0,0.01143501]
[1767266119932,0.0114,87984.0,87976.0,0.01136673]
[1767266120130,0.0114,87984.0,87975.0,0.01143501]
[1767266120336,0.0114,87984.0,87976.0,0.01136673]
[1767266120763,0.0114,87984.0,87975.0,6.815e-05]
[1767266121565,0.0114,87984.0,87975.0,0.01143501]
[1767266121734,0.0114,87984.0,87975.0,6.815e-05]
[1767266122571,0.0114,87984.0,87975.0,0.01143501]
[1767266122982,0.0114,87984.0,87975.0,6.815e-05]
[1767266127912,0.0114,87984.0,87975.0,0.01143501]
[1767266128121,0.0114,87984.0,87975.0,6.815e-05]
[1767266129702,0.0114,87984.0,87975.0,0.01143501]
[1767266129924,0.007658,87984.0,87976.0,0.05683368]
[1767266130129,0.007658,87984.0,87977.0,0.0113666]
[1767266130949,0.007658,87984.0,87976.0,0.06820041]
[1767266131164,0.007658,87984.0,87977.0,0.0113666]
[1767266131753,0.007658,87984.0,87975.0,0.01143501]
[1767266131988,0.007658,87984.0,87977.0,0.0113666]
[1767266132165,0.007658,87984.0,87976.0,0.01136673]
[1767266132396,0.007658,87984.0,87977.0,0.0113666]
[1767266133025,0.007658,87984.0,87976.0,0.01136673]
[1767266133245,0.00199931,87984.0,87978.0,0.01136647]
[1767266133875,0.00199931,87984.0,87977.0,0.0113666]
[1767266134480,0.00199931,87984.0,87978.0,0.01136647]
[1767266134692,0.00199931,87984.0,87977.0,0.0113666]
[1767266135107,0.00199931,87984.0,87978.0,0.01136647]
[1767266135930,0.00199931,87984.0,87975.0,6.815e-05]
[1767266136134,0.00199931,87984.0,87978.0,0.01136647]
[1767266137034,0.0002,87986.0,87978.0,0.01136647]
[1767266137238,0.0002,87986.0,87980.0,0.01136621]
[1767266137693,0.0002,87986.0,87981.0,0.06819654]
[1767266137901,0.0002,87986.0,87983.0,0.01136583]
[1767266138560,0.04541207,87986.0,87982.0,0.01136596]
[1767266138771,0.04541207,87986.0,87983.0,0.01136583]
[1767266139199,0.0002,87986.0,87982.0,0.01136596]
[1767266139420,0.0002,87986.0,87983.0,0.01136583]
[1767266139638,0.0002,87986.0,87982.0,0.01136596]
[1767266139846,0.0002,87986.0,87983.0,0.06819499]
[1767266141812,0.12730021,87997.0,87982.0,0.01136596]
[1767266141813,2.6480228,88000.0,87994.0,0.01136441]
[1767266142070,2.33991455,88000.0,87999.0,0.05681882]
[1767266142294,2.16044775,88000.0,87999.0,0.05681882]
[1767266142511,1.88309591,88000.0,87999.0,0.05681882]
[1767266142732,1.74102954,88000.0,87999.0,0.05681882]
[1767266142952,1.45810454,88000.0,87999.0,0.05681882]
[1767266143439,0.98297677,88000.0,87999.0,0.05681882]
[1767266143650,0.58041554,88000.0,87999.0,0.05681882]
[1767266143974,0.18741051,88000.0,87999.0,0.05681882]
[1767266144340,0.0004,88005.0,88002.0,0.05681689]
[1767266145643,0.00075259,88003.0,88002.0,0.05681689]
[1767266147108,0.0004,88005.0,88002.0,0.05681689]
[1767266147312,0.00050012,88005.0,88002.0,0.07958026]
[1767266148692,0.00045796,88005.0,88002.0,0.07958026]
[1767266149533,0.00041478,88005.0,88002.0,0.07958026]
[1767266150261,0.00037132,88005.0,88002.0,0.07958026]
[1767266150472,0.0029,88020.0,88009.0,0.01136247]
[1767266150622,0.0029,88020.0,88011.0,0.01136221]
[1767266150808,0.0029,88020.0,88012.0,0.01136208]
[1767266151005,0.0029,88020.0,88010.0,0.01136234]
[1767266151219,0.001099,88012.0,88008.0,0.0113626]
[1767266151419,0.001099,88012.0,88009.0,0.01136247]
[1767266151626,0.04811207,88020.0,88011.0,0.01136221]
[1767266151831,0.04811207,88020.0,88012.0,0.01136208]
[1767266152312,0.04811207,88020.0,88012.0,0.01081308]
[1767266152517,0.04811207,88020.0,88010.0,0.01136234]
[1767266152672,0.04811207,88020.0,88009.0,0.01136247]
[1767266152673,0.04811207,88020.0,88012.0,0.01136208]
[1767266152880,0.04811207,88020.0,88010.0,0.01136234]
[1767266153128,0.00055,88012.0,88009.0,0.01136247]
[1767266153292,0.04811207,88020.0,88008.0,0.0113626]
[1767266153608,0.04811207,88020.0,88011.0,0.01136221]
[1767266154021,0.04811207,88020.0,88008.0,0.0113626]
[1767266154171,0.04811207,88020.0,88009.0,0.01136247]
[1767266154375,0.04811207,88020.0,88011.0,0.01136221]
[1767266154593,0.04811207,88020.0,88012.0,0.01136208]
[1767266154776,0.04811207,88020.0,88011.0,0.01136221]
[1767266155113,0.04811207,88020.0,88012.0,0.01136208]
[1767266155874,0.04811207,88020.0,88010.0,0.01136234]
[1767266156101,0.04811207,88020.0,88011.0,0.01136221]
[1767266156273,0.04811207,88020.0,88012.0,0.01136208]
[1767266157139,0.04811207,88020.0,88011.0,0.01136221]
[1767266157332,0.04811207,88020.0,88008.0,0.0113626]
[1767266157539,0.04811207,88020.0,88008.0,0.06817528]
[1767266157760,0.04811207,88020.0,88011.0,0.01136221]
[1767266157929,0.04729174,88015.0,88008.0,0.0113626]
[1767266158394,0.04729174,88015.0,88009.0,0.01136247]
[1767266158591,0.04729174,88015.0,88010.0,0.01136234]
[1767266158830,0.17444675,88014.0,88003.0,0.01136324]
[1767266159033,0.04714654,88013.0,88004.0,0.01136311]
[1767266160193,0.04714654,88013.0,88003.0,0.01136324]
[1767266160393,0.04714654,88013.0,87991.0,0.01136479]
[1767266160778,0.04714654,88013.0,87995.0,0.01136428]
[1767266160951,0.04714654,88013.0,87993.0,0.01175259]
[1767266161096,0.04714654,88013.0,87994.0,0.01136441]
[1767266161496,0.04714654,88013.0,87994.0,0.06818632]
[1767266161726,0.04714654,88013.0,87995.0,0.01136428]
[1767266161947,0.04714654,88013.0,88000.0,0.5125605]
[1767266162146,0.12730021,88005.0,88000.0,0.5125605]
[1767266162384,0.17444675,88005.0,87998.0,0.01136389]
[1767266162589,0.17444675,88005.0,87997.0,0.01136402]
[1767266162735,0.17444675,88005.0,87998.0,0.01136389]
[1767266162920,0.17444675,88005.0,87997.0,0.01136402]
[1767266163405,0.17444675,88005.0,87998.0,0.01136389]
[1767266163753,0.17444675,88005.0,87997.0,0.01136402]
[1767266163955,0.17444675,88005.0,87998.0,0.01136389]
[1767266164358,0.17444675,88005.0,87997.0,0.01136402]
[1767266164792,0.17444675,88005.0,87998.0,0.01136389]
[1767266165347,0.17444675,88005.0,87999.0,0.01136376]
[1767266165550,0.17444675,88005.0,87998.0,0.01136389]
[1767266165753,0.17444675,88005.0,87997.0,0.01136402]
[1767266165977,0.17444675,88005.0,87994.0,0.01136441]
[1767266166300,0.17444675,88005.0,87995.0,0.52392478]
[1767266166700,0.04714654,88004.0,87992.0,0.01136466]
[1767266166929,0.04714654,88004.0,87994.0,0.01136441]
[1767266167069,0.04714654,88004.0,87993.0,0.01171713]
[1767266167824,0.04714654,88004.0,87993.0,0.00035259]
[1767266168188,0.04714654,88004.0,87993.0,0.01171713]
[1767266169168,0.04714654,88004.0,87993.0,0.00035259]
[1767266170386,0.04714654,88004.0,87993.0,0.01171713]
[1767266170973,0.04714654,88004.0,87994.0,0.01136441]
[1767266171186,0.04714654,88004.0,87993.0,0.01171713]
[1767266171187,0.04714654,88004.0,87993.0,0.00035259]
[1767266171388,0.04714654,88004.0,87990.0,0.01136492]
[1767266171586,0.04714654,88004.0,87990.0,0.00035303]
[1767266171812,0.04714654,88004.0,87990.0,0.51291353]
[1767266173208,0.04714654,88004.0,87990.0,0.00035303]
[1767266173408,0.04714654,88004.0,87990.0,0.01171795]
[1767266173766,0.04714654,88004.0,87990.0,0.00035303]
[1767266175451,0.04714654,88004.0,87984.0,0.0115109]
[1767266175634,0.04714654,88004.0,87984.0,0.01186436]
[1767266175829,0.04714654,88004.0,87985.0,0.01136557]
[1767266176308,0.04714654,88004.0,87984.0,0.00049866]
[1767266176830,0.04714654,88004.0,87985.0,0.01136557]
[1767266177037,0.04714654,88004.0,87984.0,0.01186436]
[1767266177234,0.04714654,88004.0,87984.0,0.00049866]
[1767266177863,0.04714654,88004.0,87978.0,0.01136647]
[1767266177864,0.04714654,87990.0,87976.0,0.01151193]
[1767266178062,0.05889929,87990.0,87976.0,0.01151193]
[1767266178889,0.05889929,87990.0,87978.0,0.01136647]
[1767266179068,0.05889929,87990.0,87979.0,0.01136634]
[1767266179249,0.05889929,87990.0,87977.0,0.0113666]
[1767266179459,0.05889929,87990.0,87978.0,0.01136647]
[1767266179646,0.05889929,87990.0,87979.0,0.01136634]
[1767266179845,0.05889929,87990.0,87978.0,0.01136647]
[1767266180318,0.05889929,87990.0,87977.0,0.0113666]
[1767266180510,0.05889929,87990.0,87978.0,0.01136647]
[1767266180721,0.05889929,87990.0,87974.0,0.01136699]
[1767266181071,0.05889929,87990.0,87975.0,0.01136686]
[1767266181277,0.05889929,87990.0,87976.0,0.01136673]
[1767266181491,0.05889929,87990.0,87974.0,0.01136699]
[1767266181710,0.05889929,87990.0,87972.0,0.0001012]
[1767266184345,0.05889929,87990.0,87972.0,0.01146845]
[1767266184561,0.05889929,87990.0,87972.0,0.0001012]
[1767266187139,0.04979569,87986.0,87972.0,0.01146845]
[1767266187344,0.04979569,87986.0,87973.0,0.01136712]
[1767266187675,0.04979569,87986.0,87972.0,0.0001012]
[1767266188013,0.04979569,87986.0,87972.0,0.01146845]
[1767266188220,0.04979569,87986.0,87973.0,0.01136712]
[1767266189159,0.04979569,87986.0,87972.0,0.01146845]
[1767266189527,0.04979569,87986.0,87973.0,0.01136712]
[1767266189944,0.04979569,87986.0,87972.0,0.01146845]
[1767266190125,0.04979569,87986.0,87973.0,0.01136712]
[1767266190666,0.04979569,87986.0,87972.0,0.01146845]
[1767266190895,0.04979569,87986.0,87973.0,0.01136712]
[1767266192059,0.04979569,87986.0,87974.0,0.01136699]
[1767266192259,0.04979569,87986.0,87973.0,0.01136712]
[1767266192669,0.04979569,87986.0,87974.0,0.01136699]
[1767266193243,0.04979569,87986.0,87973.0,0.01136712]
[1767266193913,0.04979569,87986.0,87972.0,0.01146845]
[1767266194112,0.04979569,87986.0,87973.0,0.01136712]
[1767266195719,0.04979569,87986.0,87972.0,0.01146845]
[1767266195887,0.04979569,87986.0,87973.0,0.01136712]
[1767266197013,0.04979569,87986.0,87974.0,0.01136699]
[1767266197218,0.04979569,87986.0,87972.0,0.01146845]
[1767266197524,0.04979569,87986.0,87973.0,0.01136712]
[1767266197926,0.04979569,87986.0,87972.0,0.01146845]
[1767266198137,0.04979569,87986.0,87973.0,0.01136712]
[1767266198960,0.04979569,87986.0,87972.0,0.01146845]
[1767266199361,0.04979569,87986.0,87974.0,0.01136699]
[1767266199809,0.04979569,87986.0,87972.0,0.01146845]
[1767266199931,0.04979569,87986.0,87973.0,0.01136712]
[1767266200326,0.04979569,87986.0,87972.0,0.01146845]
[1767266200684,0.04979569,87986.0,87973.0,0.01136712]
[1767266203313,0.04979569,87986.0,87974.0,0.01136699]
[1767266203464,0.04979569,87986.0,87973.0,0.01136712]
[1767266203649,0.04979569,87986.0,87974.0,0.01136699]
[1767266204064,0.04979569,87986.0,87973.0,0.01136712]
[1767266204430,0.04979569,87986.0,87974.0,0.01136699]
[1767266206006,0.04979569,87986.0,87973.0,0.01136712]
[1767266206181,0.04979569,87986.0,87974.0,0.01136699]
[1767266206921,0.04979569,87986.0,87973.0,0.01136712]
[1767266208729,0.04979569,87986.0,87974.0,0.01136699]
[1767266209082,0.04979569,87986.0,87973.0,0.01136712]
[1767266209285,0.04979569,87986.0,87974.0,0.01136699]
[1767266209699,0.04924669,87986.0,87976.0,0.52402343]
[1767266209900,0.04924669,87986.0,87976.0,0.5126567]
[1767266210203,0.04924669,87986.0,87975.0,0.01136686]
[1767266210440,0.04924669,87986.0,87976.0,0.5126567]
[1767266211241,0.01067558,87985.0,87976.0,0.5126567]
[1767266211461,0.04880669,87986.0,87976.0,0.5126567]
[1767266211654,0.01067558,87985.0,87976.0,0.5126567]
[1767266211909,0.04880669,87986.0,87976.0,0.5126567]
[1767266212145,0.06047127,87985.0,87976.0,0.5126567]
[1767266212349,0.04979569,87985.0,87976.0,0.52402343]
[1767266216372,0.04673723,87983.0,87973.0,0.01136712]
[1767266216567,0.04673723,87981.0,87973.0,0.01136712]
[1767266217413,0.04673723,87981.0,87974.0,0.01136699]
[1767266219955,0.04673723,87981.0,87973.0,0.01136712]
[1767266220676,0.04673723,87981.0,87972.0,0.0001012]
[1767266221017,0.04673723,87981.0,87972.0,0.01146845]
[1767266221348,0.04673723,87981.0,87972.0,0.0001012]
[1767266221558,0.04673723,87981.0,87973.0,0.01136712]
[1767266221702,0.04673723,87981.0,87972.0,0.0001012]
[1767266221906,0.04673723,87981.0,87973.0,0.01136712]
[1767266222107,0.04673723,87981.0,87972.0,0.01146845]
[1767266222624,0.04673723,87981.0,87972.0,0.0001012]
[1767266222838,0.04673723,87981.0,87972.0,0.01146845]
[1767266224340,0.04673723,87981.0,87973.0,0.01136712]
[1767266224880,0.04673723,87981.0,87972.0,0.01146845]
[1767266225288,0.04673723,87981.0,87973.0,0.01136712]
[1767266226176,0.04673723,87981.0,87972.0,0.01146845]
[1767266226381,0.04673723,87981.0,87973.0,0.01136712]
[1767266226618,0.04673723,87981.0,87972.0,0.01146845]
[1767266226756,0.04673723,87981.0,87973.0,0.01136712]
[1767266227159,0.04673723,87981.0,87972.0,0.0001012]
[1767266228766,0.04673723,87981.0,87972.0,0.01146845]
[1767266229191,0.04673723,87981.0,87972.0,0.0001012]
[1767266229602,0.04673723,87981.0,87972.0,0.01146845]
[1767266229799,0.04673723,87981.0,87972.0,0.0001012]
[1767266230003,0.04673723,87981.0,87972.0,0.01146845]
[1767266230207,0.04673723,87981.0,87972.0,0.0001012]
[1767266231837,0.04673723,87981.0,87973.0,0.01136712]
[1767266232037,0.04673723,87981.0,87972.0,0.01146845]
[1767266232390,0.04673723,87981.0,87973.0,0.01136712]
[1767266232596,0.04673723,87981.0,87972.0,0.01146845]
[1767266232935,0.04673723,87981.0,87973.0,0.01136712]
[1767266233337,0.04673723,87981.0,87972.0,0.01146845]
[1767266233536,0.04673723,87981.0,87972.0,0.0001012]
[1767266234964,0.04673723,87981.0,87972.0,0.01146845]
[1767266235400,0.00035275,87990.0,87976.0,0.00219328]
[1767266235582,0.00035275,87990.0,87972.0,0.22744368]
[1767266235583,0.00955947,87991.0,87990.0,0.01136492]
[1767266235745,0.0114,87996.0,87992.0,0.01136466]
[1767266235946,0.0114,87996.0,87991.0,0.01136479]
[1767266236150,0.0114,87996.0,87990.0,4.418e-05]
[1767266240405,0.05813723,87996.0,87990.0,4.418e-05]
[1767266240587,0.17403744,87991.0,87990.0,4.418e-05]
[1767266240789,0.04678123,87990.0,87980.0,0.52402291]
[1767266241110,4.4e-05,87990.0,87980.0,0.52437566]
[1767266241287,0.12730021,87991.0,87980.0,0.01171896]
[1767266241629,0.12730021,87991.0,87980.0,0.52437566]
[1767266241851,0.12730021,87991.0,87981.0,0.01136609]
[1767266242052,0.12730021,87991.0,87980.0,0.51300945]
[1767266242510,0.12730021,87991.0,87980.0,0.52437566]
[1767266242700,0.12730021,87991.0,87981.0,0.01136609]
[1767266242901,0.12730021,87991.0,87980.0,0.52437566]
[1767266243443,0.12730021,87991.0,87981.0,0.01136609]
[1767266244571,0.12730021,87991.0,87980.0,0.52437566]
[1767266245157,0.12730021,87991.0,87981.0,0.01136609]
[1767266245563,0.12730021,87991.0,87980.0,0.52437566]
[1767266245959,0.12730021,87991.0,87981.0,0.01136609]
[1767266246164,0.12730021,87991.0,87980.0,0.52437566]
[1767266246480,0.04993351,87990.0,87980.0,0.00035275]
[1767266246626,0.04993351,87988.0,87980.0,0.00035275]
[1767266263207,0.04993351,87988.0,87973.0,0.01154242]
[1767266263515,0.04993351,87988.0,87974.0,0.01136699]
[1767266264500,0.04993351,87988.0,87975.0,0.01136686]
[1767266267640,0.04993351,87988.0,87974.0,0.01136699]
[1767266270832,0.04993351,87988.0,87975.0,0.01136686]
[1767266271268,0.04993351,87988.0,87974.0,0.01136699]
[1767266271474,0.04993351,87988.0,87975.0,0.01136686]
[1767266274597,0.04993351,87988.0,87974.0,0.01136699]
[1767266274944,0.04993351,87988.0,87975.0,0.01136686]
[1767266275484,0.04993351,87988.0,87976.0,0.01136673]
[1767266276340,0.04993351,87988.0,87975.0,0.01136686]
[1767266276565,0.04993351,87988.0,87976.0,0.01136673]
[1767266277959,0.04993351,87988.0,87975.0,0.01136686]
[1767266278151,0.04993351,87988.0,87976.0,0.01136673]
[1767266278356,0.04993351,87988.0,87975.0,0.01136686]
[1767266280775,0.04993351,87988.0,87974.0,0.01136699]
[1767266280980,0.04993351,87988.0,87975.0,0.01136686]
[1767266281636,0.04993351,87988.0,87976.0,0.01136673]
[1767266281788,0.04993351,87988.0,87974.0,0.01136699]
[1767266282008,0.04993351,87988.0,87976.0,0.01136673]
[1767266282838,0.04993351,87988.0,87975.0,0.01136686]
[1767266283416,0.05028629,87988.0,87975.0,0.01136686]
[1767266284153,0.05028629,87988.0,87974.0,0.01136699]
[1767266287443,0.05028629,87988.0,87975.0,0.01136686]
[1767266288553,0.05028629,87988.0,87974.0,0.01136699]
[1767266289015,0.05028629,87988.0,87975.0,0.01136686]
[1767266289377,0.05028629,87988.0,87974.0,0.01136699]
[1767266290753,0.05028629,87988.0,87975.0,0.01136686]
[1767266291519,0.05028629,87988.0,87974.0,0.01136699]
[1767266293393,0.05028629,87988.0,87973.0,0.01154242]
[1767266293590,0.05028629,87988.0,87973.0,0.0001753]
[1767266293930,0.05028629,87988.0,87969.0,0.06823778]
[1767266293931,0.04890976,87980.0,87968.0,0.01136777]
[1767266294084,0.12730021,87976.0,87966.0,0.01136802]
[1767266294443,0.12675021,87976.0,87967.0,0.01136789]
[1767266294625,0.12675021,87976.0,87966.0,0.01136802]
[1767266294843,0.12675021,87976.0,87965.0,0.01136815]
[1767266295045,0.12675021,87976.0,87966.0,0.01136802]
[1767266296109,0.12675021,87976.0,87967.0,0.01136789]
[1767266296304,0.12675021,87976.0,87965.0,0.01136815]
[1767266296499,0.17565997,87976.0,87964.0,0.0001477]
[1767266296725,0.17565997,87976.0,87965.0,0.01136815]
[1767266296927,0.17565997,87976.0,87966.0,0.01136802]
[1767266298299,0.17565997,87976.0,87964.0,0.0001477]
[1767266298300,0.000549,87966.0,87964.0,0.0001477]
[1767266298458,0.04945876,87966.0,87964.0,0.0001477]
[1767266298624,0.04890976,87966.0,87964.0,0.0001477]
[1767266298831,0.04890976,87975.0,87964.0,0.0001477]
[1767266303323,0.04890976,87975.0,87957.0,0.01136919]
[1767266303649,0.04890976,87975.0,87958.0,0.01136906]
[1767266303973,0.04890976,87975.0,87957.0,0.01136919]
[1767266304172,0.04890976,87975.0,87956.0,0.01136932]
[1767266304523,0.04890976,87975.0,87957.0,0.01136919]
[1767266305106,0.04890976,87975.0,87958.0,0.01136906]
[1767266305448,0.04890976,87975.0,87957.0,0.01136919]
[1767266305996,0.04890976,87975.0,87956.0,0.01136932]
[1767266307691,0.04890976,87975.0,87955.0,0.01151715]
[1767266308158,0.04890976,87975.0,87956.0,0.0568466]
[1767266308454,0.04890976,87975.0,87957.0,0.01136919]
[1767266308662,0.04890976,87975.0,87956.0,0.01136932]
[1767266308829,0.04890976,87975.0,87957.0,0.01136919]
[1767266309766,0.04890976,87975.0,87956.0,0.01136932]
[1767266310540,0.04890976,87975.0,87955.0,0.01151715]
[1767266310744,0.04890976,87975.0,87956.0,0.01136932]
[1767266311380,0.04890976,87975.0,87955.0,0.0001477]
[1767266311780,0.12730021,87962.0,87955.0,0.0001477]
[1767266312823,0.17624344,87958.0,87955.0,0.0001477]
[1767266312995,0.04894323,87958.0,87955.0,0.0001477]
[1767266313370,0.12730021,87961.0,87955.0,0.0001477]
[1767266313582,0.17624344,87961.0,87955.0,0.0001477]
[1767266313782,0.12730021,87961.0,87955.0,0.0001477]
[1767266314020,0.04894323,87960.0,87955.0,0.0001477]
[1767266317610,0.04894323,87960.0,87955.0,0.01151715]
[1767266318076,0.0114,87959.0,87955.0,0.0001477]
[1767266318611,0.0114,87959.0,87956.0,0.01136932]
[1767266318823,0.0114,87959.0,87955.0,0.01151715]
[1767266318824,0.0114,87959.0,87955.0,0.0001477]
[1767266319025,0.0114,87959.0,87955.0,0.01151715]
[1767266319840,0.0114,87959.0,87956.0,0.01136932]
[1767266322134,0.0114,87959.0,87956.0,0.06821538]
[1767266326202,0.12730021,87961.0,87959.0,0.01136893]
[1767266326203,0.0114,87961.0,87959.0,0.01136893]
[1767266327263,0.0114,87961.0,87959.0,0.06821359]
[1767266333991,0.01175256,87961.0,87959.0,0.06821359]
[1767266342247,0.12675021,87976.0,87967.0,0.01136789]
[1767266342248,0.04927944,87970.0,87967.0,0.01136789]
[1767266342447,0.12675021,87976.0,87963.0,0.01136841]
[1767266342448,0.000549,87967.0,87964.0,0.06820971]
[1767266342678,0.0114,87968.0,87965.0,0.01136815]
[1767266342839,0.01135818,87968.0,87965.0,0.01136815]
[1767266343536,0.01135818,87968.0,87966.0,0.05684014]
[1767266344187,0.01135818,87968.0,87965.0,0.01136815]
[1767266347366,0.04932068,87975.0,87966.0,0.01136802]
[1767266347564,0.04932068,87973.0,87966.0,0.01136802]
[1767266348547,0.0114,87974.0,87968.0,0.01136777]
[1767266348669,0.0106705,87973.0,87968.0,0.01136777]
[1767266348874,0.0114,87974.0,87967.0,0.01136789]
[1767266349227,0.0106705,87973.0,87967.0,0.01136789]
[1767266349405,0.0114,87974.0,87967.0,0.01136789]
[1767266349604,0.01067039,87973.0,87968.0,0.01136777]
[1767266349787,0.0114,87974.0,87968.0,0.01136777]
[1767266349990,0.01067039,87973.0,87968.0,0.01136777]
[1767266350213,0.0114,87974.0,87968.0,0.01136777]
[1767266350416,0.01067034,87973.0,87968.0,0.01136777]
[1767266350584,0.0114,87974.0,87968.0,0.01136777]
[1767266350779,0.01067034,87973.0,87969.0,0.01136764]
[1767266351082,0.0114,87974.0,87969.0,0.01136764]
[1767266351280,0.01067048,87973.0,87969.0,0.01136764]
[1767266351537,0.0114,87974.0,87969.0,0.01136764]
[1767266351735,0.01067036,87973.0,87968.0,0.01136777]
[1767266351940,0.0114,87974.0,87968.0,0.01136777]
[1767266352081,0.01067036,87973.0,87968.0,0.01136777]
[1767266352281,0.0114,87974.0,87968.0,0.01136777]
[1767266352483,0.01067044,87973.0,87968.0,0.01136777]
[1767266352684,0.0114,87974.0,87968.0,0.01136777]
[1767266352902,0.01067044,87973.0,87968.0,0.01136777]
[1767266353252,0.0114,87974.0,87968.0,0.01136777]
[1767266353482,0.0106706,87973.0,87968.0,0.01136777]
[1767266353632,0.0114,87974.0,87968.0,0.01136777]
[1767266353841,0.0106706,87973.0,87968.0,0.01136777]
[1767266354039,0.0114,87974.0,87968.0,0.01136777]
[1767266354219,0.01067088,87973.0,87968.0,0.01136777]
[1767266354418,0.0114,87974.0,87968.0,0.01136777]
[1767266354646,0.01067084,87973.0,87968.0,0.01136777]
[1767266354874,0.0114,87974.0,87968.0,0.01136777]
[1767266355053,0.01067084,87973.0,87968.0,0.01136777]
[1767266355232,0.0114,87974.0,87968.0,0.01136777]
[1767266355431,0.01067116,87973.0,87969.0,0.01136764]
[1767266355665,0.06072068,87974.0,87969.0,0.01136764]
[1767266355866,0.01067116,87973.0,87968.0,0.01136777]
[1767266356112,0.06072068,87974.0,87968.0,0.01136777]
[1767266356317,0.12730021,87973.0,87971.0,0.01136738]
[1767266356521,0.12730021,87973.0,87970.0,0.01136751]
[1767266356998,0.04932068,87980.0,87977.0,0.0113666]
[1767266357145,0.000549,87977.0,87975.0,0.01136686]
[1767266357345,0.0114,87978.0,87975.0,0.01136686]
[1767266357578,0.12730021,87977.0,87975.0,0.01136686]
[1767266358963,0.12730021,87977.0,87975.0,0.06820084]
[1767266359176,0.12730021,87977.0,87975.0,0.01081786]
[1767266359483,0.12730021,87977.0,87974.0,0.01136699]
[1767266361476,0.12730021,87977.0,87971.0,0.01136738]
[1767266361697,0.00055,87974.0,87972.0,0.01136725]
[1767266362014,0.12730021,87977.0,87969.0,0.06820561]
[1767266362384,0.12730021,87977.0,87969.0,0.06825778]
[1767266362566,0.12730021,87977.0,87972.0,0.01136725]
[1767266362788,0.12730021,87977.0,87969.0,0.06825778]
[1767266362789,0.12730021,87977.0,87971.0,0.01136738]
[1767266364141,0.12730021,87977.0,87972.0,0.01136725]
[1767266366564,0.00055,87972.0,87969.0,0.01141981]
[1767266366865,0.12730021,87977.0,87971.0,0.01136738]
[1767266370084,0.12730021,87977.0,87972.0,0.01136725]
[1767266370537,0.12730021,87977.0,87971.0,0.01136738]
[1767266372486,0.12730021,87977.0,87969.0,0.01141981]
[1767266372690,0.12730021,87977.0,87970.0,0.01136751]
[1767266373431,0.12730021,87977.0,87971.0,0.01136738]
[1767266374132,0.12730021,87977.0,87970.0,0.01136751]
[1767266374326,0.12730021,87977.0,87969.0,5.217e-05]
[1767266374626,0.12730021,87977.0,87969.0,0.01141981]
[1767266374832,0.12730021,87977.0,87969.0,5.217e-05]
[1767266375048,0.12730021,87977.0,87969.0,1.7e-07]
[1767266378995,0.04619237,87976.0,87969.0,1.7e-07]
[1767266390358,0.12730021,87977.0,87969.0,1.7e-07]
[1767266390708,0.12730021,87977.0,87970.0,0.01136751]
[1767266391044,0.12730021,87977.0,87969.0,0.01136781]
[1767266391743,0.12730021,87977.0,87969.0,1.7e-07]
[1767266392421,0.12730021,87977.0,87969.0,0.01136781]
[1767266393037,0.12730021,87977.0,87969.0,1.7e-07]
[1767266393839,0.12730021,87977.0,87969.0,0.01136781]
[1767266395197,0.12730021,87977.0,87969.0,1.7e-07]
[1767266395939,0.12730021,87977.0,87969.0,0.06820563]
[1767266396288,0.12730021,87977.0,87969.0,1.7e-07]
[1767266396574,0.12730021,87977.0,87969.0,0.01136781]
[1767266397128,0.12730021,87977.0,87969.0,1.7e-07]
[1767266397330,0.12730021,87977.0,87969.0,0.01136781]